[Event "Late-Titled-Tuesday-Blitz-February-13-2024"]
[Site "Chess.com"]
[Date "2024.02.13"]
[Round "11"]
[White "KaydenTroffChess"]
[Black "Nf3c5"]
[Result "1-0"]
[WhiteElo "2831"]
[BlackElo "2571"]
[TimeControl "180+1"]
[EndTime "16:04:14 PST"]
[Termination "KaydenTroffChess won by resignation"]

1. d4 {[%clk 0:03:00.9]} 1... d5 {[%clk 0:02:57.9]} 2. Nf3 {[%clk 0:03:00.7]}
2... e6 {[%clk 0:02:57.6]} 3. Bf4 {[%clk 0:02:59.2]} 3... c5 {[%clk 0:02:55.2]}
4. e3 {[%clk 0:02:59.4]} 4... Nf6 {[%clk 0:02:53.7]} 5. Nc3 {[%clk 0:02:59.3]}
5... a6 {[%clk 0:02:48.5]} 6. Ne5 {[%clk 0:02:58.1]} 6... Nc6 {[%clk 0:02:40.6]}
7. Be2 {[%clk 0:02:56.6]} 7... cxd4 {[%clk 0:02:38.6]} 8. exd4 {[%clk 0:02:57]}
8... Bb4 {[%clk 0:02:38.9]} 9. O-O {[%clk 0:02:57]} 9... O-O {[%clk 0:02:37.7]}
10. Bg5 {[%clk 0:02:44.2]} 10... Be7 {[%clk 0:02:32.3]} 11. f4 {[%clk
0:02:39.3]} 11... Qb6 {[%clk 0:02:22.8]} 12. Nxc6 {[%clk 0:02:20]} 12... Qxc6
{[%clk 0:02:03.7]} 13. Kh1 {[%clk 0:02:17.5]} 13... b5 {[%clk 0:01:57]} 14. Bd3
{[%clk 0:02:16]} 14... g6 {[%clk 0:01:49.5]} 15. Qe1 {[%clk 0:02:11.3]} 15...
Qc7 {[%clk 0:01:17.9]} 16. Qh4 {[%clk 0:02:01.4]} 16... Qd8 {[%clk 0:01:18]} 17.
Rae1 {[%clk 0:01:54]} 17... b4 {[%clk 0:01:14.7]} 18. Na4 {[%clk 0:01:48.8]}
18... Bb7 {[%clk 0:01:10.2]} 19. f5 {[%clk 0:01:45.5]} 19... exf5 {[%clk
0:00:44.2]} 20. Rxe7 {[%clk 0:00:54.3]} 20... Qxe7 {[%clk 0:00:41.2]} 21. Bxf6
{[%clk 0:00:54.2]} 21... Qd6 {[%clk 0:00:36.7]} 22. Nc5 {[%clk 0:00:44.5]} 22...
Bc6 {[%clk 0:00:27.4]} 23. Rf3 {[%clk 0:00:29.6]} 23... Rfe8 {[%clk 0:00:21.6]}
24. Qxh7+ {[%clk 0:00:28.9]} 1-0

[Event "Late-Titled-Tuesday-Blitz-February-13-2024"]
[Site "Chess.com"]
[Date "2024.02.13"]
[Round "11"]
[White "Misterfox120"]
[Black "DanylaBagrov"]
[Result "1-0"]
[WhiteElo "2418"]
[BlackElo "2533"]
[TimeControl "180+1"]
[EndTime "16:04:15 PST"]
[Termination "Misterfox120 won by resignation"]

1. d4 {[%clk 0:02:51]} 1... f5 {[%clk 0:02:56.5]} 2. Bf4 {[%clk 0:02:47.1]} 2...
d6 {[%clk 0:02:56]} 3. e3 {[%clk 0:02:43.5]} 3... g6 {[%clk 0:02:56.4]} 4. h4
{[%clk 0:02:40.7]} 4... Nf6 {[%clk 0:02:54.9]} 5. h5 {[%clk 0:02:33.6]} 5... Rg8
{[%clk 0:02:50.8]} 6. hxg6 {[%clk 0:02:30.5]} 6... hxg6 {[%clk 0:02:51.7]} 7.
Nf3 {[%clk 0:02:28.5]} 7... Bg7 {[%clk 0:02:43.9]} 8. Bc4 {[%clk 0:02:14.6]}
8... e6 {[%clk 0:02:37]} 9. Nbd2 {[%clk 0:02:09.3]} 9... Nc6 {[%clk 0:02:34]}
10. c3 {[%clk 0:02:03.5]} 10... Ne7 {[%clk 0:02:32]} 11. Qb3 {[%clk 0:01:59.9]}
11... Ned5 {[%clk 0:02:29.1]} 12. Bg5 {[%clk 0:01:58.2]} 12... c6 {[%clk
0:02:27]} 13. e4 {[%clk 0:01:53.8]} 13... fxe4 {[%clk 0:02:16.6]} 14. Nxe4
{[%clk 0:01:52.8]} 14... Qe7 {[%clk 0:02:16.2]} 15. O-O-O {[%clk 0:01:49.8]}
15... b5 {[%clk 0:02:10.3]} 16. Bd3 {[%clk 0:01:48.6]} 16... Bd7 {[%clk
0:02:02.4]} 17. Nh4 {[%clk 0:01:28.9]} 17... O-O-O {[%clk 0:01:43.6]} 18. Nxg6
{[%clk 0:01:15.7]} 18... Qe8 {[%clk 0:01:22.1]} 19. Nxd6+ {[%clk 0:01:14.9]}
19... Kc7 {[%clk 0:01:22.5]} 20. Nxe8+ {[%clk 0:01:15.8]} 20... Rdxe8 {[%clk
0:01:23.4]} 21. Ne5 {[%clk 0:01:12.4]} 21... Rh8 {[%clk 0:01:17.5]} 22. a4
{[%clk 0:01:08.1]} 22... a6 {[%clk 0:01:17.3]} 23. c4 {[%clk 0:01:02.8]} 23...
Nb6 {[%clk 0:01:11]} 24. axb5 {[%clk 0:00:58.4]} 24... cxb5 {[%clk 0:01:10.3]}
25. cxb5 {[%clk 0:00:58.3]} 25... axb5 {[%clk 0:01:07.9]} 26. Nxd7 {[%clk
0:00:56.6]} 26... Nfxd7 {[%clk 0:01:03.2]} 27. Bxb5 {[%clk 0:00:56.4]} 27...
Rxh1 {[%clk 0:01:00.3]} 28. Rxh1 {[%clk 0:00:55.2]} 28... Bxd4 {[%clk
0:01:00.9]} 29. Rh7 {[%clk 0:00:53.9]} 29... Kd6 {[%clk 0:00:50.8]} 30. Bxd7
{[%clk 0:00:41.9]} 30... Nxd7 {[%clk 0:00:50.2]} 31. Qa3+ {[%clk 0:00:38.6]}
31... Nc5 {[%clk 0:00:49.1]} 32. Be3 {[%clk 0:00:30.7]} 32... e5 {[%clk
0:00:47.5]} 33. Bxd4 {[%clk 0:00:29.1]} 33... exd4 {[%clk 0:00:48.4]} 34. Rh5
{[%clk 0:00:27.8]} 34... Rc8 {[%clk 0:00:46.3]} 35. Qxc5+ {[%clk 0:00:27.7]}
35... Rxc5+ {[%clk 0:00:45.8]} 36. Rxc5 {[%clk 0:00:28.6]} 36... Kxc5 {[%clk
0:00:46.2]} 37. Kd2 {[%clk 0:00:29.5]} 37... Kc4 {[%clk 0:00:47]} 38. g4 {[%clk
0:00:29.4]} 1-0

[Event "Late-Titled-Tuesday-Blitz-February-13-2024"]
[Site "Chess.com"]
[Date "2024.02.13"]
[Round "11"]
[White "dennisodessa"]
[Black "Payyappat"]
[Result "1-0"]
[WhiteElo "2590"]
[BlackElo "2565"]
[TimeControl "180+1"]
[EndTime "16:04:24 PST"]
[Termination "dennisodessa won by resignation"]

1. d4 {[%clk 0:03:00.9]} 1... Nf6 {[%clk 0:02:57.8]} 2. c4 {[%clk 0:03:01.8]}
2... c5 {[%clk 0:02:56.8]} 3. d5 {[%clk 0:03:01.4]} 3... e6 {[%clk 0:02:57.7]}
4. Nc3 {[%clk 0:03:00]} 4... exd5 {[%clk 0:02:58.6]} 5. cxd5 {[%clk 0:03:00.9]}
5... d6 {[%clk 0:02:57.4]} 6. e4 {[%clk 0:03:01.6]} 6... g6 {[%clk 0:02:58.1]}
7. Bd3 {[%clk 0:03:01.4]} 7... Bg7 {[%clk 0:02:58.4]} 8. h3 {[%clk 0:03:02.2]}
8... O-O {[%clk 0:02:55.4]} 9. Nf3 {[%clk 0:03:02.5]} 9... b5 {[%clk 0:02:49.4]}
10. Bxb5 {[%clk 0:03:00.5]} 10... Nxe4 {[%clk 0:02:47.4]} 11. Nxe4 {[%clk
0:03:01.4]} 11... Qa5+ {[%clk 0:02:45.3]} 12. Nfd2 {[%clk 0:03:01.9]} 12... Qxb5
{[%clk 0:02:42.6]} 13. Nxd6 {[%clk 0:03:02.8]} 13... Qa6 {[%clk 0:02:39.2]} 14.
N2c4 {[%clk 0:03:02.9]} 14... Nd7 {[%clk 0:02:38.1]} 15. O-O {[%clk 0:03:02.9]}
15... Ne5 {[%clk 0:02:36.1]} 16. Nxe5 {[%clk 0:03:01.6]} 16... Bxe5 {[%clk
0:02:37]} 17. Nxc8 {[%clk 0:03:01.3]} 17... Raxc8 {[%clk 0:02:37.2]} 18. Qc2
{[%clk 0:02:59.8]} 18... Rfd8 {[%clk 0:02:34.1]} 19. Rd1 {[%clk 0:02:59.6]}
19... Bd4 {[%clk 0:02:32.8]} 20. Be3 {[%clk 0:02:42.7]} 20... Rxd5 {[%clk
0:02:28.4]} 21. Bxd4 {[%clk 0:02:35.1]} 21... cxd4 {[%clk 0:02:29.3]} 22. Qd3
{[%clk 0:02:33.6]} 22... Qxd3 {[%clk 0:02:27]} 23. Rxd3 {[%clk 0:02:34.5]} 23...
Rc2 {[%clk 0:02:26.4]} 24. b3 {[%clk 0:02:34.2]} 24... Rf5 {[%clk 0:02:24.1]}
25. Rf1 {[%clk 0:02:33.1]} 25... Rf4 {[%clk 0:02:17]} 26. a4 {[%clk 0:02:30.3]}
26... a5 {[%clk 0:02:08.3]} 27. f3 {[%clk 0:02:27.4]} 27... Rb2 {[%clk
0:01:56.1]} 28. Rfd1 {[%clk 0:02:27]} 28... Rf5 {[%clk 0:01:38.7]} 29. h4 {[%clk
0:02:15]} 29... Rc5 {[%clk 0:01:35.9]} 30. R1d2 {[%clk 0:02:06.7]} 30... Rb1+
{[%clk 0:01:12.3]} 31. Kh2 {[%clk 0:02:06.3]} 31... f5 {[%clk 0:01:02.5]} 32.
Kg3 {[%clk 0:01:59.9]} 32... h6 {[%clk 0:00:56.6]} 33. Rxd4 {[%clk 0:01:49.7]}
33... Rxb3 {[%clk 0:00:55.3]} 34. Rd7 {[%clk 0:01:43.2]} 34... f4+ {[%clk
0:00:45.8]} 35. Kxf4 {[%clk 0:01:36.9]} 35... Rb4+ {[%clk 0:00:43.5]} 36. Kg3
{[%clk 0:01:37.1]} 36... Rxa4 {[%clk 0:00:38.2]} 37. Ra7 {[%clk 0:01:37]} 37...
Rf5 {[%clk 0:00:25.8]} 38. Rd8+ {[%clk 0:01:32.6]} 38... Rf8 {[%clk 0:00:24.7]}
39. Rdd7 {[%clk 0:01:33.5]} 39... Rf6 {[%clk 0:00:20.5]} 40. Rg7+ {[%clk
0:01:29.1]} 40... Kh8 {[%clk 0:00:19.4]} 41. Rh7+ {[%clk 0:01:30]} 41... Kg8
{[%clk 0:00:19.7]} 42. Rxh6 {[%clk 0:01:28.7]} 42... Rb4 {[%clk 0:00:16.2]} 43.
h5 {[%clk 0:01:25.1]} 43... Rb5 {[%clk 0:00:15.9]} 44. Rxg6+ {[%clk 0:01:21.7]}
44... Rxg6+ {[%clk 0:00:15.7]} 45. hxg6 {[%clk 0:01:22.6]} 45... Rg5+ {[%clk
0:00:15]} 46. Kf2 {[%clk 0:01:21.9]} 46... Rb5 {[%clk 0:00:14.7]} 47. g4 {[%clk
0:01:20.8]} 1-0

[Event "Late-Titled-Tuesday-Blitz-February-13-2024"]
[Site "Chess.com"]
[Date "2024.02.13"]
[Round "11"]
[White "pinguino120"]
[Black "gahryman"]
[Result "0-1"]
[WhiteElo "2378"]
[BlackElo "2684"]
[TimeControl "180+1"]
[EndTime "16:04:29 PST"]
[Termination "gahryman won by resignation"]

1. d4 {[%clk 0:03:00.9]} 1... Nf6 {[%clk 0:02:55.3]} 2. c4 {[%clk 0:03:00.6]}
2... g6 {[%clk 0:02:54.6]} 3. Nc3 {[%clk 0:02:59.3]} 3... Bg7 {[%clk 0:02:54.9]}
4. e4 {[%clk 0:02:59.5]} 4... d6 {[%clk 0:02:55.3]} 5. h3 {[%clk 0:02:59.3]}
5... O-O {[%clk 0:02:55.7]} 6. Be3 {[%clk 0:02:59.4]} 6... e5 {[%clk 0:02:55.6]}
7. d5 {[%clk 0:02:58.7]} 7... Na6 {[%clk 0:02:55.7]} 8. Nf3 {[%clk 0:02:58]}
8... Nc5 {[%clk 0:02:52.5]} 9. Nd2 {[%clk 0:02:58.1]} 9... a5 {[%clk 0:02:52.3]}
10. Be2 {[%clk 0:02:46.4]} 10... Ne8 {[%clk 0:02:39.1]} 11. g4 {[%clk
0:02:46.2]} 11... f5 {[%clk 0:02:39.2]} 12. f3 {[%clk 0:02:07.7]} 12... Bh6
{[%clk 0:02:38.1]} 13. Bf2 {[%clk 0:02:01]} 13... Nf6 {[%clk 0:01:56.8]} 14.
gxf5 {[%clk 0:01:54.4]} 14... gxf5 {[%clk 0:01:56.1]} 15. Rg1+ {[%clk
0:01:46.2]} 15... Kh8 {[%clk 0:01:55.8]} 16. Qc2 {[%clk 0:01:38.6]} 16... fxe4
{[%clk 0:01:51.6]} 17. Ndxe4 {[%clk 0:01:18.7]} 17... Nfxe4 {[%clk 0:01:50.8]}
18. Nxe4 {[%clk 0:01:10.3]} 18... Nxe4 {[%clk 0:01:47]} 19. Qxe4 {[%clk
0:01:09.3]} 19... Bf5 {[%clk 0:01:45.4]} 20. Qh4 {[%clk 0:01:05.8]} 20... Qxh4
{[%clk 0:01:36.5]} 21. Bxh4 {[%clk 0:01:06.7]} 21... b6 {[%clk 0:01:34.8]} 22.
Bg5 {[%clk 0:01:02.3]} 22... Bxg5 {[%clk 0:01:33]} 23. Rxg5 {[%clk 0:01:02.1]}
23... Bg6 {[%clk 0:01:05.2]} 24. O-O-O {[%clk 0:00:55.6]} 24... Rf4 {[%clk
0:01:04.9]} 25. Rg4 {[%clk 0:00:52.8]} 25... Raf8 {[%clk 0:01:04.5]} 26. Rdg1
{[%clk 0:00:43.4]} 26... Kg7 {[%clk 0:01:00]} 27. Rxf4 {[%clk 0:00:40.8]} 27...
Rxf4 {[%clk 0:00:59.4]} 28. Rg4 {[%clk 0:00:41.1]} 28... Kf6 {[%clk 0:00:57.2]}
29. Rxf4+ {[%clk 0:00:37.4]} 29... exf4 {[%clk 0:00:56.9]} 30. Kd2 {[%clk
0:00:37.8]} 30... Kg5 {[%clk 0:00:56.7]} 31. Bd3 {[%clk 0:00:33]} 31... Kh4
{[%clk 0:00:53.2]} 32. Bf1 {[%clk 0:00:30.6]} 32... Kg3 {[%clk 0:00:52.2]} 33.
Be2 {[%clk 0:00:29.4]} 33... h5 {[%clk 0:00:50.5]} 34. Kc3 {[%clk 0:00:29.6]}
34... h4 {[%clk 0:00:49.9]} 35. Kd4 {[%clk 0:00:29.9]} 35... Bf5 {[%clk
0:00:50.1]} 36. a4 {[%clk 0:00:25.8]} 36... Kf2 {[%clk 0:00:49.5]} 37. Bd1
{[%clk 0:00:25.6]} 37... Kg3 {[%clk 0:00:48.7]} 38. b4 {[%clk 0:00:22.6]} 38...
axb4 {[%clk 0:00:47.7]} 39. a5 {[%clk 0:00:22.7]} 39... bxa5 {[%clk 0:00:47.5]}
40. c5 {[%clk 0:00:23.6]} 40... Kxh3 {[%clk 0:00:47.1]} 41. cxd6 {[%clk
0:00:22.9]} 41... cxd6 {[%clk 0:00:46.8]} 0-1

[Event "Late-Titled-Tuesday-Blitz-February-13-2024"]
[Site "Chess.com"]
[Date "2024.02.13"]
[Round "11"]
[White "abeljusto"]
[Black "Yushko_Olga"]
[Result "0-1"]
[WhiteElo "2085"]
[BlackElo "2223"]
[TimeControl "180+1"]
[EndTime "16:04:30 PST"]
[Termination "Yushko_Olga won on time"]

1. e4 {[%clk 0:03:00.9]} 1... g6 {[%clk 0:02:59.1]} 2. d4 {[%clk 0:03:00.2]}
2... Bg7 {[%clk 0:02:59.9]} 3. Nc3 {[%clk 0:03:00]} 3... d6 {[%clk 0:03:00.2]}
4. Be3 {[%clk 0:03:00.3]} 4... Nf6 {[%clk 0:03:01]} 5. f3 {[%clk 0:02:59.9]}
5... Nbd7 {[%clk 0:03:00.8]} 6. Qd2 {[%clk 0:02:59.9]} 6... e5 {[%clk
0:03:01.5]} 7. Nge2 {[%clk 0:02:59.3]} 7... c6 {[%clk 0:03:01.5]} 8. g4 {[%clk
0:02:45.9]} 8... b5 {[%clk 0:03:00]} 9. Bh6 {[%clk 0:02:37.6]} 9... O-O {[%clk
0:02:55.4]} 10. h4 {[%clk 0:02:36.1]} 10... b4 {[%clk 0:02:52.4]} 11. Nd1 {[%clk
0:02:30.8]} 11... exd4 {[%clk 0:02:47.8]} 12. Nxd4 {[%clk 0:02:31.7]} 12... c5
{[%clk 0:02:45.8]} 13. Ne2 {[%clk 0:02:21]} 13... Ne5 {[%clk 0:02:44.4]} 14. Bg2
{[%clk 0:02:17.4]} 14... a5 {[%clk 0:02:30.9]} 15. h5 {[%clk 0:02:15.4]} 15...
Nc4 {[%clk 0:02:26.4]} 16. Qf4 {[%clk 0:01:56.2]} 16... d5 {[%clk 0:02:24.6]}
17. Bxg7 {[%clk 0:01:54.1]} 17... Kxg7 {[%clk 0:02:21.8]} 18. hxg6 {[%clk
0:01:52.8]} 18... fxg6 {[%clk 0:02:19.3]} 19. Qh6+ {[%clk 0:01:51.6]} 19... Kg8
{[%clk 0:02:18.8]} 20. b3 {[%clk 0:01:17.2]} 20... Ne5 {[%clk 0:02:10.7]} 21.
exd5 {[%clk 0:00:54.9]} 21... Qxd5 {[%clk 0:02:06.4]} 22. Ne3 {[%clk 0:00:55.2]}
22... Nxf3+ {[%clk 0:02:03.2]} 23. Kf2 {[%clk 0:00:40]} 23... Ne4+ {[%clk
0:01:55.1]} 24. Kf1 {[%clk 0:00:27]} 24... Ned2+ {[%clk 0:01:44.8]} 25. Kf2
{[%clk 0:00:24.6]} 25... Qf7 {[%clk 0:01:40.6]} 26. Kg3 {[%clk 0:00:17.4]} 26...
Ne4+ {[%clk 0:01:40.1]} 27. Kh3 {[%clk 0:00:14.1]} 27... Nf2+ {[%clk 0:01:36.4]}
28. Kg3 {[%clk 0:00:12.3]} 28... Ne4+ {[%clk 0:01:31.3]} 29. Kh3 {[%clk
0:00:12.2]} 29... Neg5+ {[%clk 0:01:25.4]} 30. Kg3 {[%clk 0:00:11.7]} 30... Qc7+
{[%clk 0:01:20.5]} 31. Kf2 {[%clk 0:00:10.5]} 31... Nd4+ {[%clk 0:01:13.9]} 32.
Ke1 {[%clk 0:00:08.4]} 32... Ndf3+ {[%clk 0:01:13.6]} 33. Bxf3 {[%clk
0:00:05.2]} 33... Nxf3+ {[%clk 0:01:13.2]} 34. Kd1 {[%clk 0:00:03.8]} 34... Qd6+
{[%clk 0:01:12]} 35. Kc1 {[%clk 0:00:02.5]} 35... Qd2+ {[%clk 0:01:09.2]} 36.
Kb2 {[%clk 0:00:02.1]} 36... Ra7 {[%clk 0:01:06.8]} 37. Rad1 {[%clk 0:00:01.2]}
37... Qxe2 {[%clk 0:01:05.2]} 0-1

[Event "Late-Titled-Tuesday-Blitz-February-13-2024"]
[Site "Chess.com"]
[Date "2024.02.13"]
[Round "11"]
[White "Lavandum24"]
[Black "tarno17"]
[Result "0-1"]
[WhiteElo "1878"]
[BlackElo "2119"]
[TimeControl "180+1"]
[EndTime "16:04:34 PST"]
[Termination "tarno17 won by checkmate"]

1. e4 {[%clk 0:03:00.9]} 1... c5 {[%clk 0:02:57.4]} 2. Nf3 {[%clk 0:03:00.4]}
2... e6 {[%clk 0:02:57.4]} 3. d4 {[%clk 0:02:57.1]} 3... cxd4 {[%clk 0:02:58.3]}
4. Nxd4 {[%clk 0:02:57.3]} 4... a6 {[%clk 0:02:59]} 5. c4 {[%clk 0:02:57.1]}
5... Nf6 {[%clk 0:02:57.3]} 6. Nc3 {[%clk 0:02:53.3]} 6... Bb4 {[%clk
0:02:57.9]} 7. f3 {[%clk 0:02:48.1]} 7... Qc7 {[%clk 0:02:42.2]} 8. Be3 {[%clk
0:02:47.4]} 8... Nc6 {[%clk 0:02:42]} 9. a3 {[%clk 0:02:45.1]} 9... Bd6 {[%clk
0:02:25.8]} 10. Ndb5 {[%clk 0:02:34.8]} 10... axb5 {[%clk 0:02:25.8]} 11. Nxb5
{[%clk 0:02:34.7]} 11... Bg3+ {[%clk 0:02:26.4]} 12. hxg3 {[%clk 0:02:34.2]}
12... Qxg3+ {[%clk 0:02:26.5]} 13. Bf2 {[%clk 0:02:34.5]} 13... Qe5 {[%clk
0:02:16.5]} 14. Nd6+ {[%clk 0:02:29]} 14... Ke7 {[%clk 0:02:12.6]} 15. Nxc8+
{[%clk 0:02:23.3]} 15... Rhxc8 {[%clk 0:01:58.8]} 16. Rb1 {[%clk 0:02:15.9]}
16... Kf8 {[%clk 0:01:52.7]} 17. Be2 {[%clk 0:02:09.1]} 17... Kg8 {[%clk
0:01:38.6]} 18. O-O {[%clk 0:02:05.4]} 18... d5 {[%clk 0:01:31.7]} 19. exd5
{[%clk 0:01:50.7]} 19... exd5 {[%clk 0:01:32.6]} 20. c5 {[%clk 0:01:49.7]} 20...
Re8 {[%clk 0:01:09.9]} 21. Re1 {[%clk 0:01:49.1]} 21... Qg5 {[%clk 0:01:04.2]}
22. Qd3 {[%clk 0:01:37.4]} 22... Nh5 {[%clk 0:01:00.5]} 23. Be3 {[%clk
0:01:31.6]} 23... Rxe3 {[%clk 0:00:55.6]} 24. Qd2 {[%clk 0:01:27.3]} 24... Nf4
{[%clk 0:00:45.1]} 25. Bf1 {[%clk 0:01:26.6]} 25... Rxe1 {[%clk 0:00:42.4]} 26.
Rxe1 {[%clk 0:01:25.7]} 26... Nh3+ {[%clk 0:00:33.8]} 27. Kh2 {[%clk 0:01:25]}
27... Qxd2 {[%clk 0:00:34.2]} 28. Re2 {[%clk 0:01:21.3]} 28... Qd1 {[%clk
0:00:32.2]} 29. Kxh3 {[%clk 0:01:14.8]} 29... Qxf1 {[%clk 0:00:30.6]} 30. Rd2
{[%clk 0:01:13.5]} 30... d4 {[%clk 0:00:26.8]} 31. b4 {[%clk 0:01:11.1]} 31...
d3 {[%clk 0:00:26.3]} 32. b5 {[%clk 0:01:10.6]} 32... Ne5 {[%clk 0:00:26.8]} 33.
b6 {[%clk 0:01:06]} 33... Nxf3 {[%clk 0:00:26.9]} 34. c6 {[%clk 0:01:03.5]}
34... Nxd2 {[%clk 0:00:23.9]} 35. cxb7 {[%clk 0:01:01]} 35... Rb8 {[%clk
0:00:22.7]} 36. a4 {[%clk 0:01:01.4]} 36... Qf4 {[%clk 0:00:17.6]} 37. a5 {[%clk
0:00:57.9]} 37... Ne4 {[%clk 0:00:18]} 38. a6 {[%clk 0:00:51.5]} 38... Qg3#
{[%clk 0:00:12.4]} 0-1

[Event "Late-Titled-Tuesday-Blitz-February-13-2024"]
[Site "Chess.com"]
[Date "2024.02.13"]
[Round "11"]
[White "Flawless_Fighter"]
[Black "Binary010"]
[Result "1-0"]
[WhiteElo "2756"]
[BlackElo "2874"]
[TimeControl "180+1"]
[EndTime "16:04:37 PST"]
[Termination "Flawless_Fighter won on time"]

1. e4 {[%clk 0:03:00.9]} 1... e5 {[%clk 0:02:55.7]} 2. Nf3 {[%clk 0:03:01.1]}
2... Nf6 {[%clk 0:02:56.2]} 3. Nc3 {[%clk 0:03:01.6]} 3... Nc6 {[%clk 0:02:56]}
4. Bb5 {[%clk 0:03:02.3]} 4... Nd4 {[%clk 0:02:55.4]} 5. O-O {[%clk 0:03:02.6]}
5... Nxb5 {[%clk 0:02:53]} 6. Nxb5 {[%clk 0:03:03.5]} 6... c6 {[%clk 0:02:53.4]}
7. Nc3 {[%clk 0:03:04]} 7... d6 {[%clk 0:02:53.5]} 8. d4 {[%clk 0:03:04.7]} 8...
Qc7 {[%clk 0:02:53.6]} 9. Bg5 {[%clk 0:03:04.2]} 9... Be7 {[%clk 0:02:53.7]} 10.
Qd3 {[%clk 0:03:04.7]} 10... O-O {[%clk 0:02:53.5]} 11. a4 {[%clk 0:03:05.4]}
11... a5 {[%clk 0:02:50.6]} 12. Rfd1 {[%clk 0:03:04.7]} 12... h6 {[%clk
0:02:49.5]} 13. Bxf6 {[%clk 0:03:04.6]} 13... Bxf6 {[%clk 0:02:49.6]} 14. d5
{[%clk 0:03:05.4]} 14... Rd8 {[%clk 0:02:43.7]} 15. h3 {[%clk 0:03:02.5]} 15...
Be7 {[%clk 0:02:30.6]} 16. Qc4 {[%clk 0:03:00.9]} 16... Qb6 {[%clk 0:02:25.8]}
17. b3 {[%clk 0:02:56.6]} 17... Bd7 {[%clk 0:02:22.8]} 18. Qd3 {[%clk
0:02:43.9]} 18... Rac8 {[%clk 0:02:21.6]} 19. Nd2 {[%clk 0:02:41.6]} 19... Qc7
{[%clk 0:02:07.6]} 20. Nc4 {[%clk 0:02:34.5]} 20... b5 {[%clk 0:01:30.3]} 21.
Ne3 {[%clk 0:02:31.1]} 21... b4 {[%clk 0:01:23.2]} 22. dxc6 {[%clk 0:02:20.8]}
22... Qxc6 {[%clk 0:01:21.6]} 23. Ncd5 {[%clk 0:02:19.9]} 23... Bf8 {[%clk
0:01:21.9]} 24. Rac1 {[%clk 0:02:16.9]} 24... Qb7 {[%clk 0:01:15.5]} 25. c4
{[%clk 0:02:14.4]} 25... bxc3 {[%clk 0:01:14.9]} 26. Rxc3 {[%clk 0:02:12.2]}
26... Rxc3 {[%clk 0:01:12.3]} 27. Qxc3 {[%clk 0:02:13.1]} 27... Rc8 {[%clk
0:01:12.5]} 28. Qd3 {[%clk 0:02:08]} 28... Be6 {[%clk 0:01:00.4]} 29. Nc4 {[%clk
0:02:03.3]} 29... Bxd5 {[%clk 0:00:54.1]} 30. exd5 {[%clk 0:01:41.5]} 30... Rc5
{[%clk 0:00:54.1]} 31. g3 {[%clk 0:01:36.5]} 31... e4 {[%clk 0:00:41.4]} 32.
Qxe4 {[%clk 0:01:28.4]} 32... Qxb3 {[%clk 0:00:40.6]} 33. Ne3 {[%clk 0:01:26.5]}
33... Rc3 {[%clk 0:00:28.8]} 34. Rb1 {[%clk 0:01:19.6]} 34... Qa2 {[%clk
0:00:22.6]} 35. Rb8 {[%clk 0:01:17]} 35... Qe2 {[%clk 0:00:17.9]} 36. Qe8 {[%clk
0:01:06.8]} 36... Kh7 {[%clk 0:00:16.9]} 37. Qxf7 {[%clk 0:01:03.3]} 37... Qd3
{[%clk 0:00:02.7]} 38. Qxf8 {[%clk 0:01:00.3]} 38... Rc1+ {[%clk 0:00:03.1]} 39.
Kh2 {[%clk 0:00:55.3]} 1-0

[Event "Late-Titled-Tuesday-Blitz-February-13-2024"]
[Site "Chess.com"]
[Date "2024.02.13"]
[Round "11"]
[White "yaguigor"]
[Black "cande_francisco"]
[Result "1-0"]
[WhiteElo "2643"]
[BlackElo "2505"]
[TimeControl "180+1"]
[EndTime "16:04:38 PST"]
[Termination "yaguigor won by resignation"]

1. Nf3 {[%clk 0:03:00.9]} 1... c5 {[%clk 0:02:58.3]} 2. e4 {[%clk 0:02:59.4]}
2... a6 {[%clk 0:02:58.1]} 3. c3 {[%clk 0:02:58.9]} 3... d5 {[%clk 0:02:58]} 4.
exd5 {[%clk 0:02:58.5]} 4... Qxd5 {[%clk 0:02:58.9]} 5. d4 {[%clk 0:02:58.6]}
5... e6 {[%clk 0:02:55.9]} 6. Be3 {[%clk 0:02:57.3]} 6... cxd4 {[%clk
0:02:55.6]} 7. cxd4 {[%clk 0:02:56.8]} 7... Nf6 {[%clk 0:02:56.3]} 8. Nc3 {[%clk
0:02:55.1]} 8... Qd8 {[%clk 0:02:55.3]} 9. Bd3 {[%clk 0:02:52]} 9... Bd6 {[%clk
0:02:46]} 10. O-O {[%clk 0:02:50.7]} 10... Nc6 {[%clk 0:02:43.1]} 11. Rc1 {[%clk
0:02:47.2]} 11... O-O {[%clk 0:02:36.6]} 12. a3 {[%clk 0:02:40]} 12... Ne7
{[%clk 0:01:59.9]} 13. Bg5 {[%clk 0:02:30.1]} 13... Ned5 {[%clk 0:01:40.7]} 14.
Nxd5 {[%clk 0:02:27.5]} 14... exd5 {[%clk 0:01:41.6]} 15. Ne5 {[%clk 0:02:27.5]}
15... h6 {[%clk 0:01:39.7]} 16. Bh4 {[%clk 0:02:25.1]} 16... g5 {[%clk
0:01:37.4]} 17. Bg3 {[%clk 0:02:24.3]} 17... Kg7 {[%clk 0:01:31.3]} 18. Re1
{[%clk 0:02:13.9]} 18... Ne4 {[%clk 0:01:18]} 19. Qh5 {[%clk 0:01:58.5]} 19...
Nxg3 {[%clk 0:01:15.2]} 20. hxg3 {[%clk 0:01:56.4]} 20... Be6 {[%clk 0:01:07.9]}
21. Re3 {[%clk 0:01:42]} 21... Rc8 {[%clk 0:00:57.6]} 22. Rce1 {[%clk
0:01:40.7]} 22... Rh8 {[%clk 0:00:40.1]} 23. Qf3 {[%clk 0:01:16.5]} 23... Qf6
{[%clk 0:00:36.3]} 24. Qh5 {[%clk 0:01:10.6]} 24... Rc7 {[%clk 0:00:32.6]} 25.
Rf3 {[%clk 0:01:09.5]} 25... Qd8 {[%clk 0:00:30.2]} 26. Bf5 {[%clk 0:00:59.2]}
26... Bxe5 {[%clk 0:00:10.6]} 27. Rxe5 {[%clk 0:00:56]} 27... Bxf5 {[%clk
0:00:10.9]} 28. Rexf5 {[%clk 0:00:55]} 28... Rf8 {[%clk 0:00:09]} 29. Rf6 {[%clk
0:00:54.7]} 29... Qxf6 {[%clk 0:00:06.1]} 30. Rxf6 {[%clk 0:00:53.8]} 30... Kxf6
{[%clk 0:00:07]} 31. Qxh6+ {[%clk 0:00:53.9]} 31... Ke7 {[%clk 0:00:07.9]} 32.
Qxg5+ {[%clk 0:00:53.9]} 32... f6 {[%clk 0:00:03.7]} 33. Qe3+ {[%clk 0:00:48.7]}
33... Kf7 {[%clk 0:00:03.3]} 34. g4 {[%clk 0:00:47.6]} 34... Re8 {[%clk
0:00:03.6]} 35. Qh6 {[%clk 0:00:46.4]} 35... Rc2 {[%clk 0:00:02.6]} 36. Qh7+
{[%clk 0:00:46.1]} 1-0